fUSD/lending_fUSD_20250426
["ID","MTS","AMOUNT","RATE_DAILY","PERIOD"]
[359014735,1745641839111,-1000.0,0.0002,2]
[359014736,1745641839121,-1000.0,0.0002,2]
[359014737,1745641839130,-1000.0,0.0002,2]
[359014738,1745641839140,-1000.0,0.0002,2]
[359014739,1745641839150,-1000.0,0.0002,2]
[359014740,1745641839160,-1000.0,0.0002,2]
[359014741,1745641839169,-1000.0,0.0002,2]
[359014742,1745641839179,-1000.0,0.0002,2]
[359014743,1745641839188,-1000.0,0.0002,2]
[359014744,1745641839198,-1000.0,0.0002,2]
[359014745,1745641839208,-1000.0,0.0002,2]
[359014746,1745641839219,-1000.0,0.0002,2]
[359014747,1745641839230,-1000.0,0.0002,2]
[359014748,1745641839239,-1000.0,0.0002,2]
[359014749,1745641839249,-1000.0,0.0002,2]
[359014750,1745641839258,-1000.0,0.0002,2]
[359014751,1745641839269,-1000.0,0.0002,2]
[359014752,1745641839279,-1000.0,0.0002,2]
[359014753,1745641839289,-1000.0,0.0002,2]
[359014754,1745641839299,-1000.0,0.0002,2]
[359014755,1745641839309,-702.36256316,0.0002,2]
[359014756,1745641839318,-182.71996143,0.0002,2]
[359014757,1745641839327,-455.14,0.0002,2]
[359014758,1745641839337,-455.14,0.0002,2]
[359014759,1745641839347,-455.14,0.0002,2]
[359014760,1745641839357,-249.19968241,0.0002,2]
[359014761,1745641839369,-150.99,0.0002,2]
[359014762,1745641839378,-3532.57,0.0002,2]
[359014763,1745641839388,-1641291.65938163,0.0002,2]
[359014764,1745641839492,-656.67,0.0002,2]
[359014765,1745641839531,-1594.10902335,0.0002,2]
[359014766,1745641839544,-2074.10097665,0.0002,2]
[359014770,1745641840081,-309.67361514,0.0002,2]
[359014771,1745641840095,-574.72339879,0.0002,2]
[359014772,1745641840154,-758.79780336,0.0002,2]
[359014773,1745641840166,-826.4806967,0.0002,2]
[359014774,1745641840343,-863.96141753,0.00019986,2]
[359014775,1745641840355,-3622.03466094,0.00019986,2]
[359014786,1745641842876,-1802.34874372,0.00019986,2]
[359014787,1745641843088,-494.15689218,0.00019986,2]
[359014813,1745641846090,-1326.118,0.00019986,2]
[359014814,1745641846136,-1853.47,0.00019986,2]
[359014821,1745641846197,-189.08410933,0.00019986,2]
[359014823,1745641846206,-1096.27395904,0.0002,2]
[359014830,1745641846272,-700777.89924069,0.0002,2]
[359014834,1745641851217,800.0,0.000192,7]
[359014835,1745641853335,1700.0,0.000193,7]
[359014836,1745641855436,2500.0,0.000194,7]
[359014837,1745641857555,3400.0,0.000195,7]
[359014838,1745641859657,4200.0,0.000196,7]
[359014839,1745641861754,800.0,0.000197,7]
[359014840,1745641863849,800.0,0.000198,7]
[359014841,1745641865962,800.0,0.000199,7]
[359014843,1745642192951,23900.0,0.00019054,2]
[359014844,1745642197090,545.0,0.0002,4]
[359014845,1745642222629,1457.77,0.00017127,2]
[359014846,1745642397898,8041.75,0.0001889,2]
[359014847,1745642404706,2643.0,0.00018885,2]
[359014848,1745642447080,250.0,0.00017,2]
[359014849,1745642448352,300.0,0.00019,2]
[359014850,1745642458013,250.0,0.00018879,2]
[359014851,1745642722858,155.79,0.00027425,30]
[359014852,1745642770123,1000.0,0.00018842,2]
[359014853,1745642828036,1046.75,0.00018852,2]
[359014858,1745642864302,200.0,0.00018852,2]
[359014859,1745642924855,150.75,0.00019281,2]
[359014880,1745643032244,-870.2646,0.00019346,2]
[359014881,1745643032255,-200.0,0.00019357,2]
[359014882,1745643032265,-250.0,0.00019368,2]
[359014883,1745643032276,-1457.77,0.00019391,2]
[359014884,1745643032286,-1200.0,0.00019445,2]
[359014885,1745643032296,-5427.62,0.00019446,2]
[359014886,1745643032306,-249.19968241,0.000195,2]
[359014887,1745643032317,-300.0,0.00019613,2]
[359014888,1745643032328,-283.0,0.00019613,2]
[359014889,1745643032338,-14433.35,0.00019614,2]
[359014890,1745643032350,-755.8859893,0.000197,2]
[359014891,1745643032360,-189.15,0.00019708,2]
[359014892,1745643032370,-755.8859893,0.00019729,2]
[359014893,1745643032380,-448.00840592,0.0001977,2]
[359014894,1745643032391,-21643.36001792,0.00019771,2]
[359014895,1745643032402,-500.0,0.00019781,2]
[359014896,1745643032413,-390.0,0.00019785,2]
[359014897,1745643032424,-303.606,0.00019786,2]
[359014898,1745643032435,-10041.7651,0.00019786,2]
[359014899,1745643032445,-1000.0,0.00019786,2]
[359014900,1745643032455,-2500.0,0.00019786,2]
[359014901,1745643032466,-1216.48,0.00019786,2]
[359014902,1745643032476,-3532.57,0.00019786,2]
[359014903,1745643032488,-150.99,0.00019786,2]
[359014904,1745643032499,-9999.99,0.00019786,2]
[359014905,1745643032511,-2549.06857985,0.00019786,2]
[359014906,1745643032525,-276.33142015,0.00019786,2]
[359014907,1745643032535,-1000.0,0.00019789,2]
[359014908,1745643032545,-2000.0,0.00019839,2]
[359014909,1745643032556,-200.0,0.00019839,2]
[359014910,1745643032566,-987.27033107,0.0001984,2]
[359014911,1745643032580,-1012.72966893,0.0001984,2]
[359014912,1745643032591,-1633.87006379,0.0001984,2]
[359014913,1745643032646,-366.12993621,0.0001984,2]
[359014914,1745643032656,-200.0,0.0001984,2]
[359014915,1745643032667,-200.0,0.0001984,2]
[359014916,1745643032677,-180.65,0.00019876,2]
[359014917,1745643032687,-180.65,0.00019878,2]
[359014918,1745643032697,-1000.0,0.00019885,2]
[359014919,1745643032709,-7042.61225903,0.00019886,2]
[359014920,1745643032719,-5944.36509134,0.00019886,2]
[359014921,1745643032731,-626.0537296,0.00019886,2]
[359014922,1745643032745,-387.13222533,0.00019886,2]
[359014923,1745643032906,-2571.79212204,0.00019886,2]
[359014924,1745643032919,-1895.58556209,0.00019886,2]
[359014925,1745643032931,-458.43,0.00019886,2]
[359014926,1745643032943,-915.86088275,0.00019886,2]
[359014927,1745643035926,-845.72788746,0.00019886,2]
[359014928,1745643035982,-2602.0,0.00019886,2]
[359014930,1745643035994,-54855.33565918,0.00019886,2]
[359015038,1745643037846,-366.12785766,0.00019886,2]
[359015039,1745643037861,-71488.69508255,0.00019886,2]
[359015040,1745643037873,-7042.61225898,0.00019888,2]
[359015041,1745643037885,-7042.61225898,0.00019889,2]
[359015042,1745643037897,-180.65,0.0001989,2]
[359015043,1745643037907,-7042.61225898,0.00019891,2]
[359015044,1745643037920,-202.36741403,0.00019891,2]
[359015045,1745643037931,-166.0163325,0.00019891,2]
[359015046,1745643037941,-500.0,0.00019891,2]
[359015047,1745643037953,-500.0,0.00019891,2]
[359015048,1745643037964,-500.0,0.00019891,2]
[359015049,1745643037975,-500.0,0.00019891,2]
[359015050,1745643037986,-500.0,0.00019891,2]
[359015051,1745643037996,-500.0,0.00019891,2]
[359015052,1745643038008,-500.0,0.00019891,2]
[359015053,1745643038019,-500.0,0.00019891,2]
[359015054,1745643038031,-500.0,0.00019891,2]
[359015055,1745643038041,-500.0,0.00019891,2]
[359015056,1745643038053,-7042.61225898,0.00019892,2]
[359015057,1745643038064,-7042.61225898,0.00019894,2]
[359015058,1745643038075,-7042.61225898,0.00019895,2]
[359015059,1745643038088,-7042.61225898,0.00019897,2]
[359015060,1745643038100,-7042.61225898,0.00019898,2]
[359015061,1745643038112,-459.53254163,0.000199,2]
[359015062,1745643038122,-523.79341731,0.000199,2]
[359015063,1745643038133,-225.0,0.000199,2]
[359015064,1745643038147,-7042.61225898,0.000199,2]
[359015065,1745643038160,-20014.17774864,0.000199,2]
[359015066,1745643038170,-335.83307756,0.000199,2]
[359015067,1745643038182,-157.83682965,0.00019973,2]
[359015068,1745643038193,-500.0,0.00019973,2]
[359015069,1745643038204,-500.0,0.00019973,2]
[359015070,1745643038219,-506.14206331,0.00019973,2]
[359015071,1745643038230,-159.98710487,0.00019973,2]
[359015073,1745643038247,-500.0,0.00019973,2]
[359015074,1745643038258,-500.0,0.00019973,2]
[359015076,1745643038270,-500.0,0.00019973,2]
[359015077,1745643038282,-607.62589314,0.00019973,2]
[359015078,1745643038294,-500.91092153,0.00019973,2]
[359015080,1745643038304,-515.11545751,0.00019973,2]
[359015081,1745643038315,-280.82120578,0.00019973,2]
[359015082,1745643038324,-180.65,0.00019976,2]
[359015083,1745643038335,-5215.7850031,0.00019986,2]
[359015084,1745643038345,-614.4960329,0.00019986,2]
[359015085,1745643038354,-153.3636514,0.00019986,2]
[359015086,1745643038364,-181858.793037,0.00019986,2]
[359015087,1745643038374,-8622.9467441,0.00019986,2]
[359015088,1745643038384,-28875.5525829,0.00019986,2]
[359015090,1745643038394,-132621.541275,0.00019986,2]
[359015091,1745643038404,-1000.0,0.00019999,2]
[359015092,1745643038414,-1000.0,0.00019999,2]
[359015093,1745643038423,-1000.0,0.00019999,2]
[359015094,1745643038433,-1000.0,0.00019999,2]
[359015095,1745643038444,-1000.0,0.00019999,2]
[359015096,1745643038454,-1000.0,0.00019999,2]
[359015097,1745643038465,-1000.0,0.00019999,2]
[359015098,1745643038475,-1000.0,0.00019999,2]
[359015099,1745643038485,-1000.0,0.00019999,2]
[359015100,1745643038495,-1000.0,0.00019999,2]
[359015101,1745643038506,-1000.0,0.00019999,2]
[359015102,1745643038516,-1000.0,0.00019999,2]
[359015103,1745643038526,-1000.0,0.00019999,2]
[359015104,1745643038536,-1000.0,0.00019999,2]
[359015105,1745643038546,-1000.0,0.00019999,2]
[359015106,1745643038558,-1000.0,0.00019999,2]
[359015107,1745643038568,-1000.0,0.00019999,2]
[359015108,1745643038578,-1000.0,0.00019999,2]
[359015109,1745643038589,-1000.0,0.00019999,2]
[359015110,1745643038599,-1000.0,0.00019999,2]
[359015111,1745643038610,-1000.0,0.00019999,2]
[359015112,1745643038620,-1000.0,0.00019999,2]
[359015113,1745643038631,-1000.0,0.00019999,2]
[359015114,1745643038641,-1000.0,0.00019999,2]
[359015115,1745643038651,-1000.0,0.00019999,2]
[359015116,1745643038674,-1000.0,0.00019999,2]
[359015117,1745643038686,-1000.0,0.00019999,2]
[359015118,1745643038696,-1000.0,0.00019999,2]
[359015119,1745643038707,-1000.0,0.00019999,2]
[359015120,1745643038719,-1000.0,0.00019999,2]
[359015121,1745643038729,-1000.0,0.00019999,2]
[359015122,1745643038740,-1000.0,0.00019999,2]
[359015123,1745643038750,-1000.0,0.00019999,2]
[359015124,1745643038760,-1000.0,0.00019999,2]
[359015125,1745643038771,-1000.0,0.00019999,2]
[359015126,1745643038781,-1000.0,0.00019999,2]
[359015127,1745643038791,-1000.0,0.00019999,2]
[359015128,1745643038802,-1000.0,0.00019999,2]
[359015129,1745643038812,-1000.0,0.00019999,2]
[359015130,1745643038823,-1000.0,0.00019999,2]
[359015131,1745643038833,-1000.0,0.00019999,2]
[359015132,1745643038843,-1000.0,0.00019999,2]
[359015133,1745643038853,-1000.0,0.00019999,2]
[359015134,1745643038864,-1000.0,0.00019999,2]
[359015135,1745643038874,-1000.0,0.00019999,2]
[359015136,1745643038885,-1000.0,0.00019999,2]
[359015137,1745643038895,-1000.0,0.00019999,2]
[359015138,1745643038905,-1000.0,0.00019999,2]
[359015139,1745643038915,-1000.0,0.00019999,2]
[359015140,1745643038925,-1000.0,0.00019999,2]
[359015141,1745643038935,-1000.0,0.00019999,2]
[359015142,1745643038946,-1000.0,0.00019999,2]
[359015143,1745643038956,-1000.0,0.00019999,2]
[359015144,1745643038966,-1000.0,0.00019999,2]
[359015145,1745643038978,-1000.0,0.00019999,2]
[359015146,1745643038988,-1000.0,0.00019999,2]
[359015147,1745643038998,-1000.0,0.00019999,2]
[359015148,1745643039011,-1000.0,0.00019999,2]
[359015149,1745643039207,-1000.0,0.00019999,2]
[359015150,1745643039219,-1000.0,0.00019999,2]
[359015151,1745643039228,-1000.0,0.00019999,2]
[359015152,1745643039237,-1000.0,0.00019999,2]
[359015153,1745643039247,-1000.0,0.00019999,2]
[359015154,1745643039256,-1000.0,0.00019999,2]
[359015155,1745643039266,-1000.0,0.00019999,2]
[359015156,1745643039275,-1000.0,0.00019999,2]
[359015157,1745643039285,-1000.0,0.00019999,2]
[359015158,1745643039294,-1000.0,0.00019999,2]
[359015159,1745643039304,-1000.0,0.00019999,2]
[359015160,1745643039313,-1000.0,0.00019999,2]
[359015161,1745643039323,-1000.0,0.00019999,2]
[359015162,1745643039332,-1000.0,0.00019999,2]
[359015163,1745643039341,-1000.0,0.00019999,2]
[359015164,1745643039350,-1000.0,0.00019999,2]
[359015165,1745643039360,-1000.0,0.00019999,2]
[359015166,1745643039370,-1000.0,0.00019999,2]
[359015167,1745643039379,-1000.0,0.00019999,2]
[359015168,1745643039388,-1000.0,0.00019999,2]
[359015169,1745643039398,-1000.0,0.00019999,2]
[359015170,1745643039407,-1000.0,0.00019999,2]
[359015171,1745643039416,-1000.0,0.00019999,2]
[359015172,1745643039425,-1000.0,0.00019999,2]
[359015173,1745643039435,-1000.0,0.00019999,2]
[359015174,1745643039444,-1000.0,0.00019999,2]
[359015175,1745643039454,-1000.0,0.00019999,2]
[359015176,1745643039463,-1000.0,0.00019999,2]
[359015177,1745643039473,-1000.0,0.00019999,2]
[359015178,1745643039487,-1000.0,0.00019999,2]
[359015179,1745643039498,-1000.0,0.00019999,2]
[359015180,1745643039509,-1000.0,0.00019999,2]
[359015181,1745643039520,-1000.0,0.00019999,2]
[359015182,1745643039530,-239.0,0.00019999,2]
[359015183,1745643039542,-500.0,0.00019999,2]
[359015184,1745643039554,-300.0,0.00019999,2]
[359015185,1745643039564,-300.0,0.00019999,2]
[359015186,1745643039574,-151.0,0.00019999,2]
[359015187,1745643039584,-1517.3923314,0.00019999,2]
[359015188,1745643039595,-1427.0,0.0002,2]
[359015189,1745643039606,-2195038.78536619,0.0002,2]
[359015190,1745643039620,-2494318.525,0.0002,2]
[359015191,1745643039656,-1440.38702462,0.0002,2]
[359015192,1745643039669,-531.63683674,0.0002,2]
[359015193,1745643039763,-13522.69347749,0.0002,2]
[359015194,1745643039783,-3279.73300446,0.0002,2]
[359015195,1745643039807,-1529.9557274,0.0002,2]
[359015196,1745643040202,-657.96086,0.0002,2]
[359015197,1745643040311,-542500.0,0.0002,2]
[359015198,1745643040323,-847.1284259,0.0002,2]
[359015207,1745643046253,-420.43427725,0.000199,2]
[359015208,1745643046264,-16.16572035,0.000199,2]
[359015209,1745643046296,-924.0,0.000199,2]
[359015219,1745643141479,-300.0,0.00019731,2]
[359015220,1745643268883,275.43995101,0.00037808,60]
[359015221,1745643365271,760.0,0.0001928,2]
[359015222,1745643365296,23140.0,0.0001928,2]
[359015223,1745643380736,5000.0,0.00019281,2]
[359015224,1745643486919,250.0,0.00019051,2]
[359015225,1745643516265,-187.03,0.00019602,2]
[359015226,1745643516293,-23.5963,0.00019694,2]
[359015227,1745643518583,500.0,0.00019065,2]
[359015228,1745643521927,-226.4037,0.00019694,2]
[359015229,1745643521950,-62.4442,0.000197,2]
[359015230,1745643526100,-323.4831088,0.000197,2]
[359015231,1745643530668,-191.2694,0.000197,2]
[359015233,1745643535735,-323.4831088,0.000197,2]
[359015234,1745643545777,-176.46142,0.000197,2]
[359015235,1745643550196,-335.75550825,0.000197,2]
[359015236,1745643560733,-221.22342554,0.000197,2]
[359015237,1745643566522,-300.0,0.000197,2]
[359015238,1745643570129,-436.8479,0.000197,2]
[359015239,1745643573287,-288.8479,0.000197,2]
[359015240,1745643576889,-210.84,0.000197,2]
[359015241,1745643624773,2000.0,0.000378,60]
[359015242,1745643639381,2000.0,0.000301,120]
[359015243,1745643651218,-158.5213762,0.00019686,2]
[359015244,1745643651243,-250.0,0.00019686,2]
[359015245,1745643651267,-210.6263,0.00019686,2]
[359015246,1745643651291,-539.67618744,0.000197,2]
[359015247,1745643654245,1574.0,0.000301,120]
[359015248,1745643703736,584.07,0.00018914,2]
[359015249,1745643732343,179.75,0.00018999,2]
[359015250,1745643732543,179.75,0.00028498,120]
[359015251,1745643852472,200.0,0.00018905,2]
[359015252,1745643877690,1000.0,0.00018905,2]
[359015253,1745643884319,523.37,0.00018905,2]
[359015254,1745643898624,873.93465821,0.00037,120]
[359015255,1745643926547,276.63,0.00016987,2]
[359015256,1745643926569,1068.33,0.00016987,2]
[359015257,1745643926726,931.67,0.00019251,2]
[359015258,1745643926748,413.29,0.00019251,2]
[359015259,1745644014161,-165.55248592,0.00019395,2]
[359015260,1745644018373,-84.44751408,0.00019395,2]
[359015261,1745644018394,-136.44880205,0.000196,2]
[359015262,1745644022942,-157.88228322,0.000196,2]
[359015263,1745644048589,155.79,0.00027425,30]
[359015264,1745644072803,153.03,0.0003,30]
[359015265,1745644196619,169.49,0.00018896,2]
[359015268,1745644208513,-271.03250172,0.00019601,2]
[359015269,1745644208808,150.0,0.000193,2]
[359015270,1745644224979,-182.06601086,0.00019601,2]
[359015271,1745644228482,-28.04667142,0.00019601,2]
[359015272,1745644229665,387.56139136,0.00012866,2]
[359015273,1745644229688,1267.22,0.00012866,2]
[359015274,1745644229710,2000.0,0.00012866,2]
[359015275,1745644229731,2000.0,0.00012866,2]
[359015276,1745644229752,2000.0,0.00012866,2]
[359015277,1745644229773,2000.0,0.00012866,2]
[359015278,1745644229794,2000.0,0.00012866,2]
[359015279,1745644229816,845.21860864,0.00012866,2]
[359015289,1745644232371,-33609.26035759,0.000197,2]
[359015311,1745644238217,-325498.86640717,0.000197,2]
[359015312,1745644238226,-1000.0,0.000197,2]
[359015313,1745644238236,-12054.5325568,0.00019717,2]
[359015314,1745644238246,-12685.69410564,0.00019731,2]
[359015315,1745644238255,-12985.69410564,0.0001974,2]
[359015316,1745644238266,-300.0,0.00019746,2]
[359015317,1745644238277,-1200.0,0.00019746,2]
[359015318,1745644238288,-7596.716043,0.00019747,2]
[359015319,1745644238299,-2434.4319053,0.00019747,2]
[359015320,1745644238309,-181.8071019,0.0001976,2]
[359015321,1745644238319,-12054.5325568,0.00019784,2]
[359015322,1745644238329,-14569.9173,0.00019786,2]
[359015323,1745644238338,-678.724,0.00019786,2]
[359015324,1745644238348,-1598.7898,0.00019786,2]
[359015325,1745644238358,-1000.0,0.00019786,2]
[359015326,1745644238367,-525.48834842,0.000198,2]
[359015327,1745644238377,-1000.0,0.000198,2]
[359015328,1745644238389,-6192.95109816,0.000198,2]
[359015329,1745644238398,-2500.0,0.000198,2]
[359015330,1745644238408,-6192.95109808,0.00019811,2]
[359015331,1745644238417,-694.73757449,0.00019821,2]
[359015332,1745644238427,-6192.95109808,0.00019822,2]
[359015333,1745644238436,-484.19938864,0.00019832,2]
[359015334,1745644238446,-3173.9,0.00019833,2]
[359015335,1745644238456,-42775.33,0.00019833,2]
[359015336,1745644238466,-647.89,0.00019833,2]
[359015337,1745644238475,-150.99,0.00019833,2]
[359015338,1745644238485,-6192.95109808,0.00019833,2]
[359015339,1745644238494,-2000.0,0.0001984,2]
[359015340,1745644238503,-200.0,0.0001984,2]
[359015341,1745644238513,-6192.95109808,0.00019844,2]
[359015342,1745644238523,-6192.95109808,0.00019856,2]
[359015343,1745644238532,-6192.95109808,0.00019867,2]
[359015344,1745644238543,-6192.95109808,0.00019878,2]
[359015345,1745644238553,-6753.03650701,0.00019886,2]
[359015346,1745644238565,-6753.03650697,0.00019888,2]
[359015347,1745644238575,-151.0,0.00019888,2]
[359015348,1745644238584,-207.4,0.00019888,2]
[359015349,1745644238594,-6192.95109808,0.00019889,2]
[359015351,1745644238605,-6753.03650697,0.00019889,2]
[359015352,1745644238615,-6753.03650697,0.00019891,2]
[359015353,1745644238627,-6753.03650697,0.00019892,2]
[359015354,1745644238637,-6753.03650697,0.00019894,2]
[359015355,1745644238649,-6753.03650697,0.00019895,2]
[359015356,1745644238659,-6753.03650697,0.00019897,2]
[359015357,1745644238670,-6753.03650697,0.00019898,2]
[359015358,1745644238679,-6472.8249,0.00019899,2]
[359015359,1745644238689,-1764.7,0.00019899,2]
[359015360,1745644238698,-525.48834842,0.00019899,2]
[359015361,1745644238708,-500.0,0.000199,2]
[359015362,1745644238717,-105417.75373118,0.000199,2]
[359015363,1745644238727,-420.51740518,0.000199,2]
[359015364,1745644238738,-174.59780577,0.000199,2]
[359015365,1745644238749,-225.0,0.000199,2]
[359015366,1745644238759,-6192.95109808,0.000199,2]
[359015367,1745644238770,-6753.03650697,0.000199,2]
[359015368,1745644238780,-500.0,0.00019973,2]
[359015369,1745644238790,-500.0,0.00019973,2]
[359015370,1745644238801,-159.98710487,0.00019973,2]
[359015371,1745644238814,-157.83682965,0.00019973,2]
[359015372,1745644238823,-607.62589314,0.00019973,2]
[359015373,1745644238832,-500.0,0.00019973,2]
[359015374,1745644238842,-500.0,0.00019973,2]
[359015375,1745644238852,-515.11545751,0.00019973,2]
[359015376,1745644238862,-500.0,0.00019973,2]
[359015377,1745644238872,-500.0,0.00019973,2]
[359015378,1745644238882,-280.82120578,0.00019973,2]
[359015379,1745644238892,-668.65185757,0.00019974,2]
[359015380,1745644238903,-500.0,0.00019985,2]
[359015381,1745644238913,-500.0,0.00019985,2]
[359015382,1745644238923,-500.0,0.00019985,2]
[359015383,1745644238932,-500.0,0.00019985,2]
[359015384,1745644238942,-500.0,0.00019985,2]
[359015385,1745644238951,-500.0,0.00019985,2]
[359015386,1745644238961,-500.0,0.00019985,2]
[359015387,1745644238970,-500.0,0.00019985,2]
[359015388,1745644238980,-500.0,0.00019985,2]
[359015389,1745644238990,-500.0,0.00019985,2]
[359015390,1745644238999,-500.0,0.00019985,2]
[359015391,1745644239009,-500.0,0.00019985,2]
[359015393,1745644239019,-500.0,0.00019985,2]
[359015396,1745644239031,-500.0,0.00019985,2]
[359015397,1745644239041,-500.0,0.00019985,2]
[359015398,1745644239051,-166.12663264,0.00019985,2]
[359015399,1745644239062,-500.0,0.00019985,2]
[359015400,1745644239072,-500.0,0.00019985,2]
[359015401,1745644239082,-500.0,0.00019985,2]
[359015402,1745644239092,-500.0,0.00019985,2]
[359015403,1745644239102,-150.0,0.00019985,2]
[359015404,1745644239112,-450.0,0.00019985,2]
[359015405,1745644239122,-450.0,0.00019985,2]
[359015406,1745644239133,-450.0,0.00019985,2]
[359015407,1745644239143,-150.0,0.00019985,2]
[359015408,1745644239154,-15493.8187678,0.00019986,2]
[359015409,1745644239163,-169128.9640028,0.00019986,2]
[359015410,1745644239174,-7646.1255782,0.00019986,2]
[359015411,1745644239183,-7695.5351135,0.00019986,2]
[359015412,1745644239194,-2434.4319053,0.00019986,2]
[359015413,1745644239205,-2434.4319053,0.00019986,2]
[359015414,1745644239215,-1000.0,0.00019999,2]
[359015415,1745644239226,-1000.0,0.00019999,2]
[359015416,1745644239236,-1000.0,0.00019999,2]
[359015417,1745644239246,-1000.0,0.00019999,2]
[359015418,1745644239256,-1000.0,0.00019999,2]
[359015419,1745644239266,-1000.0,0.00019999,2]
[359015420,1745644239276,-1000.0,0.00019999,2]
[359015421,1745644239286,-1000.0,0.00019999,2]
[359015422,1745644239295,-1000.0,0.00019999,2]
[359015423,1745644239305,-1000.0,0.00019999,2]
[359015424,1745644239315,-1000.0,0.00019999,2]
[359015425,1745644239324,-1000.0,0.00019999,2]
[359015426,1745644239335,-1000.0,0.00019999,2]
[359015427,1745644239346,-500.0,0.00019999,2]
[359015428,1745644239356,-500.0,0.00019999,2]
[359015429,1745644239367,-300.0,0.00019999,2]
[359015430,1745644239378,-151.0,0.00019999,2]
[359015431,1745644239391,-1517.3923314,0.00019999,2]
[359015432,1745644239401,-383.00964834,0.00019999,2]
[359015433,1745644239411,-1522.0,0.0002,2]
[359015434,1745644239420,-1896889.81998426,0.0002,2]
[359015436,1745644240247,-2494318.525,0.0002,2]
[359015437,1745644240260,-1153.86737547,0.0002,2]
[359015438,1745644240314,-459.13262453,0.0002,2]
[359015439,1745644240341,-435.68158216,0.0002,2]
[359015440,1745644240354,-9896.37855973,0.0002,2]
[359015441,1745644240698,-357.41127501,0.0002,2]
[359015442,1745644240979,-569.69438388,0.0002,2]
[359015443,1745644241279,-323.4831088,0.00019999,2]
[359015453,1745644243390,-814.56113975,0.00019999,2]
[359015454,1745644243400,-37145.79262827,0.0002,2]
[359015498,1745644246255,-853.53318641,0.00019999,2]
[359015499,1745644246265,-19967.2902182,0.0002,2]
[359015500,1745644246277,-946.0,0.0002,2]
[359015501,1745644253970,-191.2694,0.00019999,2]
[359015502,1745644262557,167.93,0.00017,2]
[359015503,1745644262580,82.07,0.00017,2]
[359015504,1745644263641,300.0,0.00019,2]
[359015505,1745644286207,10000.0,0.00030137,120]
[359015506,1745644318119,10000.0,0.00030137,120]
[359015507,1745644347144,772.71139136,0.00012893,2]
[359015508,1745644347166,2000.0,0.00012893,2]
[359015509,1745644347188,2000.0,0.00012893,2]
[359015510,1745644347209,2000.0,0.00012893,2]
[359015511,1745644347229,2000.0,0.00012893,2]
[359015512,1745644347252,2000.0,0.00012893,2]
[359015513,1745644347275,1727.28860864,0.00012893,2]
[359015514,1745644365845,272.71139136,0.00012884,2]
[359015515,1745644365868,2000.0,0.00012884,2]
[359015516,1745644365891,2000.0,0.00012884,2]
[359015517,1745644365913,2000.0,0.00012884,2]
[359015518,1745644365935,2000.0,0.00012884,2]
[359015519,1745644365959,2000.0,0.00012884,2]
[359015520,1745644365985,2227.28860864,0.00012884,2]
[359015521,1745644385449,12500.0,0.00012875,2]
[359015522,1745644404174,12500.0,0.00012866,2]
[359015523,1745644422861,12500.0,0.00012858,2]
[359015524,1745644439728,229.2977874,0.00037808,60]
[359015525,1745644441611,12500.0,0.00012849,2]
[359015526,1745644460869,12500.0,0.0001284,2]
[359015528,1745644658455,-245.72,0.00019427,2]
[359015529,1745644658483,-54.28,0.00019613,2]
[359015530,1745644673445,-145.72,0.00019613,2]
[359015531,1745644678497,-199.98157304,0.00019515,2]
[359015532,1745644690753,-65.56938196,0.00019515,2]
[359015533,1745644752813,237.94,0.00019266,2]